fUST/lending_fUST_20250529
["ID","MTS","AMOUNT","RATE_DAILY","PERIOD"]
[362930972,1748524259285,-430.0,0.00022191,2]
[362930973,1748524259295,-430.0,0.00022191,2]
[362930974,1748524259305,-430.0,0.00022191,2]
[362930975,1748524259315,-654.15,0.00022191,2]
[362930976,1748524259325,-430.0,0.00022191,2]
[362930977,1748524259335,-2547.41,0.00022191,2]
[362930978,1748524259345,-192.92534833,0.00022195,5]
[362930979,1748524259354,-944.53964678,0.00022314,7]
[362930980,1748524259363,-430.0,0.00022465,2]
[362930981,1748524259373,-430.0,0.00022465,2]
[362930982,1748524259382,-430.0,0.00022465,2]
[362930983,1748524259392,-430.0,0.00022465,2]
[362930984,1748524259401,-430.0,0.00022465,2]
[362930985,1748524259411,-496.47,0.00022465,2]
[362930986,1748524259421,-627.85,0.00022465,2]
[362930987,1748524259431,-430.0,0.00022465,2]
[362930988,1748524259441,-430.0,0.00022465,2]
[362930989,1748524259452,-1287.03,0.00022465,2]
[362930990,1748524259462,-430.0,0.00022465,2]
[362930991,1748524259472,-430.0,0.00022465,2]
[362930992,1748524259483,-430.0,0.00022465,2]
[362930993,1748524259493,-759.64,0.00022465,2]
[362930994,1748524259503,-430.0,0.00022465,2]
[362930995,1748524259513,-430.0,0.00022465,2]
[362930996,1748524259523,-430.0,0.00022465,2]
[362930997,1748524259532,-430.0,0.00022465,2]
[362930998,1748524259543,-430.0,0.00022465,2]
[362930999,1748524259552,-430.0,0.00022465,2]
[362931000,1748524259563,-430.0,0.00022465,2]
[362931001,1748524259573,-430.0,0.00022465,2]
[362931002,1748524259583,-1086.35,0.00022465,2]
[362931003,1748524259593,-430.0,0.00022465,2]
[362931004,1748524259602,-430.0,0.00022465,2]
[362931005,1748524259613,-430.0,0.00022465,2]
[362931006,1748524259622,-430.0,0.00022465,2]
[362931007,1748524259631,-430.0,0.00022465,2]
[362931008,1748524259641,-1431.32,0.00022465,2]
[362931009,1748524259650,-430.0,0.00022465,2]
[362931010,1748524259660,-353.15,0.00022465,2]
[362931011,1748524259669,-430.0,0.00022465,2]
[362931012,1748524259679,-430.0,0.00022465,2]
[362931013,1748524259689,-430.0,0.00022465,2]
[362931014,1748524259699,-430.0,0.00022465,2]
[362931015,1748524259708,-430.0,0.00022465,2]
[362931016,1748524259718,-430.0,0.00022465,2]
[362931017,1748524259728,-430.0,0.00022465,2]
[362931018,1748524259738,-430.0,0.00022465,2]
[362931019,1748524259748,-430.0,0.00022465,2]
[362931020,1748524259757,-456.08,0.00022465,2]
[362931021,1748524259767,-654.15,0.00022465,2]
[362931022,1748524259777,-430.0,0.00022465,2]
[362931023,1748524259786,-2547.41,0.00022465,2]
[362931024,1748524259795,-944.53964678,0.00022486,7]
[362931025,1748524259805,-944.53964678,0.00022659,7]
[362931026,1748524259814,-430.0,0.00022739,2]
[362931027,1748524259825,-430.0,0.00022739,2]
[362931028,1748524259835,-496.47,0.00022739,2]
[362931029,1748524259844,-627.85,0.00022739,2]
[362931030,1748524259853,-430.0,0.00022739,2]
[362931031,1748524259863,-1287.03,0.00022739,2]
[362931032,1748524259872,-430.0,0.00022739,2]
[362931033,1748524259884,-430.0,0.00022739,2]
[362931034,1748524259894,-430.0,0.00022739,2]
[362931035,1748524259905,-759.64,0.00022739,2]
[362931036,1748524259914,-430.0,0.00022739,2]
[362931037,1748524259924,-430.0,0.00022739,2]
[362931038,1748524259934,-430.0,0.00022739,2]
[362931039,1748524259943,-430.0,0.00022739,2]
[362931040,1748524259955,-430.0,0.00022739,2]
[362931041,1748524259965,-430.0,0.00022739,2]
[362931042,1748524259974,-430.0,0.00022739,2]
[362931043,1748524259985,-1086.35,0.00022739,2]
[362931044,1748524259994,-430.0,0.00022739,2]
[362931045,1748524260003,-430.0,0.00022739,2]
[362931046,1748524260014,-430.0,0.00022739,2]
[362931047,1748524260024,-430.0,0.00022739,2]
[362931048,1748524260034,-430.0,0.00022739,2]
[362931049,1748524260045,-1431.32,0.00022739,2]
[362931050,1748524260055,-430.0,0.00022739,2]
[362931051,1748524260066,-430.0,0.00022739,2]
[362931052,1748524260076,-430.0,0.00022739,2]
[362931053,1748524260086,-430.0,0.00022739,2]
[362931054,1748524260096,-430.0,0.00022739,2]
[362931055,1748524260105,-430.0,0.00022739,2]
[362931056,1748524260116,-430.0,0.00022739,2]
[362931057,1748524260126,-430.0,0.00022739,2]
[362931058,1748524260137,-430.0,0.00022739,2]
[362931059,1748524260146,-430.0,0.00022739,2]
[362931060,1748524260156,-654.15,0.00022739,2]
[362931061,1748524260166,-430.0,0.00022739,2]
[362931062,1748524260177,-2547.41,0.00022739,2]
[362931063,1748524260187,-944.53964678,0.00022831,8]
[362931064,1748524260197,-944.53964678,0.00023003,8]
[362931065,1748524260207,-496.47,0.00023013,2]
[362931066,1748524260217,-627.85,0.00023013,2]
[362931067,1748524260227,-430.0,0.00023013,2]
[362931068,1748524260238,-1287.03,0.00023013,2]
[362931069,1748524260248,-430.0,0.00023013,2]
[362931070,1748524260257,-430.0,0.00023013,2]
[362931071,1748524260268,-430.0,0.00023013,2]
[362931072,1748524260278,-759.64,0.00023013,2]
[362931073,1748524260289,-430.0,0.00023013,2]
[362931074,1748524260299,-430.0,0.00023013,2]
[362931075,1748524260309,-430.0,0.00023013,2]
[362931076,1748524260319,-430.0,0.00023013,2]
[362931077,1748524260329,-430.0,0.00023013,2]
[362931078,1748524260339,-430.0,0.00023013,2]
[362931079,1748524260349,-1086.35,0.00023013,2]
[362931080,1748524260360,-430.0,0.00023013,2]
[362931081,1748524260371,-430.0,0.00023013,2]
[362931082,1748524260382,-430.0,0.00023013,2]
[362931083,1748524260392,-430.0,0.00023013,2]
[362931084,1748524260402,-430.0,0.00023013,2]
[362931085,1748524260412,-1431.32,0.00023013,2]
[362931086,1748524260422,-430.0,0.00023013,2]
[362931087,1748524260432,-430.0,0.00023013,2]
[362931088,1748524260443,-430.0,0.00023013,2]
[362931089,1748524260453,-430.0,0.00023013,2]
[362931090,1748524260463,-430.0,0.00023013,2]
[362931091,1748524260473,-430.0,0.00023013,2]
[362931092,1748524260483,-430.0,0.00023013,2]
[362931093,1748524260494,-430.0,0.00023013,2]
[362931094,1748524260505,-355.08,0.00023013,2]
[362931095,1748524260514,-654.15,0.00023013,2]
[362931096,1748524260524,-430.0,0.00023013,2]
[362931097,1748524260535,-2547.41,0.00023013,2]
[362931098,1748524260545,-944.53964678,0.00023176,8]
[362931099,1748524260554,-496.47,0.00023287,2]
[362931100,1748524260564,-627.85,0.00023287,2]
[362931101,1748524260574,-1287.03,0.00023287,2]
[362931102,1748524260584,-430.0,0.00023287,2]
[362931103,1748524260594,-411.24,0.00023287,2]
[362931104,1748524260604,-430.0,0.00023287,2]
[362931105,1748524260615,-759.64,0.00023287,2]
[362931106,1748524260625,-430.0,0.00023287,2]
[362931107,1748524260635,-430.0,0.00023287,2]
[362931108,1748524260645,-430.0,0.00023287,2]
[362931109,1748524260655,-430.0,0.00023287,2]
[362931110,1748524260664,-430.0,0.00023287,2]
[362931111,1748524260674,-1086.35,0.00023287,2]
[362931112,1748524260684,-430.0,0.00023287,2]
[362931113,1748524260694,-476.0,0.00023287,2]
[362931114,1748524260704,-430.0,0.00023287,2]
[362931115,1748524260714,-430.0,0.00023287,2]
[362931116,1748524260724,-1431.32,0.00023287,2]
[362931117,1748524260733,-430.0,0.00023287,2]
[362931118,1748524260743,-430.0,0.00023287,2]
[362931119,1748524260753,-430.0,0.00023287,2]
[362931120,1748524260762,-430.0,0.00023287,2]
[362931121,1748524260772,-430.0,0.00023287,2]
[362931122,1748524260781,-430.0,0.00023287,2]
[362931123,1748524260791,-430.0,0.00023287,2]
[362931124,1748524260801,-654.15,0.00023287,2]
[362931125,1748524260811,-430.0,0.00023287,2]
[362931126,1748524260820,-2547.41,0.00023287,2]
[362931127,1748524260830,-17518.13,0.000233,2]
[362931128,1748524260840,-151.0,0.000233,7]
[362931129,1748524260850,-151.0,0.000233,7]
[362931130,1748524260860,-153.159294,0.000233,7]
[362931131,1748524260871,-206.261309,0.000233,7]
[362931132,1748524260978,-206.261309,0.000233,7]
[362931133,1748524260989,-944.53964678,0.00023348,9]
[362931134,1748524261000,-500.0,0.00023356,2]
[362931135,1748524261011,-736.54,0.000234,7]
[362931136,1748524261020,-23047.4,0.000234,7]
[362931137,1748524261031,-1624.39,0.00023421,2]
[362931138,1748524261040,-706.0,0.00023421,2]
[362931139,1748524261051,-944.53964678,0.00023521,9]
[362931140,1748524261061,-496.47,0.00023561,2]
[362931141,1748524261070,-627.85,0.00023561,2]
[362931142,1748524261081,-1287.03,0.00023561,2]
[362931143,1748524261091,-430.0,0.00023561,2]
[362931144,1748524261100,-759.64,0.00023561,2]
[362931145,1748524261110,-430.0,0.00023561,2]
[362931146,1748524261121,-430.0,0.00023561,2]
[362931147,1748524261131,-430.0,0.00023561,2]
[362931148,1748524261140,-1086.35,0.00023561,2]
[362931149,1748524261150,-430.0,0.00023561,2]
[362931150,1748524261159,-430.0,0.00023561,2]
[362931151,1748524261169,-430.0,0.00023561,2]
[362931152,1748524261178,-1431.32,0.00023561,2]
[362931153,1748524261188,-430.0,0.00023561,2]
[362931154,1748524261198,-430.0,0.00023561,2]
[362931155,1748524261208,-430.0,0.00023561,2]
[362931156,1748524261218,-369.81,0.00023561,2]
[362931157,1748524261228,-430.0,0.00023561,2]
[362931158,1748524261239,-654.15,0.00023561,2]
[362931159,1748524261248,-430.0,0.00023561,2]
[362931160,1748524261258,-2547.41,0.00023561,2]
[362931161,1748524261267,-393.06,0.000236,7]
[362931162,1748524261278,-2372.65,0.000236,2]
[362931163,1748524261288,-944.53964678,0.00023693,9]
[362931164,1748524261299,-151.0,0.00023733,2]
[362931165,1748524261309,-207.4,0.00023733,2]
[362931166,1748524261319,-496.47,0.00023835,2]
[362931167,1748524261329,-627.85,0.00023835,2]
[362931168,1748524261339,-1287.03,0.00023835,2]
[362931169,1748524261350,-430.0,0.00023835,2]
[362931170,1748524261361,-759.64,0.00023835,2]
[362931171,1748524261372,-545.24,0.00023835,2]
[362931172,1748524261382,-413.22,0.00023835,2]
[362931173,1748524261393,-430.0,0.00023835,2]
[362931174,1748524261403,-1086.35,0.00023835,2]
[362931175,1748524261413,-430.0,0.00023835,2]
[362931176,1748524261423,-430.0,0.00023835,2]
[362931177,1748524261432,-1431.32,0.00023835,2]
[362931178,1748524261443,-430.0,0.00023835,2]
[362931179,1748524261453,-430.0,0.00023835,2]
[362931180,1748524261464,-419.66,0.00023835,2]
[362931181,1748524261474,-654.15,0.00023835,2]
[362931182,1748524261485,-430.0,0.00023835,2]
[362931183,1748524261495,-2547.41,0.00023835,2]
[362931184,1748524261506,-944.53964678,0.00023866,10]
[362931185,1748524261516,-324.56090644,0.000239,2]
[362931186,1748524261526,-229.26895353,0.00024,7]
[362931187,1748524261536,-160.0,0.00024,7]
[362931188,1748524261546,-944.53964678,0.00024038,10]
[362931189,1748524261556,-350.16,0.000241,2]
[362931190,1748524261565,-496.47,0.00024109,2]
[362931191,1748524261575,-185.025,0.00024109,2]
[362931192,1748524261585,-627.85,0.00024109,2]
[362931193,1748524261595,-1287.03,0.00024109,2]
[362931194,1748524261606,-430.0,0.00024109,2]
[362931195,1748524261618,-759.64,0.00024109,2]
[362931196,1748524261627,-430.0,0.00024109,2]
[362931197,1748524261638,-1086.35,0.00024109,2]
[362931198,1748524261648,-430.0,0.00024109,2]
[362931199,1748524261657,-430.0,0.00024109,2]
[362931200,1748524261667,-1431.32,0.00024109,2]
[362931201,1748524261678,-430.0,0.00024109,2]
[362931202,1748524261688,-364.08,0.00024109,2]
[362931203,1748524261697,-151.0,0.00024109,7]
[362931204,1748524261707,-654.15,0.00024109,2]
[362931205,1748524261717,-430.0,0.00024109,2]
[362931206,1748524261727,-2547.41,0.00024109,2]
[362931207,1748524261735,-944.53964678,0.0002421,10]
[362931208,1748524261745,-430.12270734,0.00024216,2]
[362931209,1748524261754,-153.0,0.00024247,2]
[362931210,1748524261763,-174.9723149,0.00024247,2]
[362931211,1748524261774,-572.078714,0.00024247,2]
[362931212,1748524261783,-153.0,0.00024247,2]
[362931213,1748524261794,-572.078714,0.00024247,2]
[362931214,1748524261805,-153.0,0.00024247,2]
[362931215,1748524261815,-272.9010384,0.00024247,2]
[362931216,1748524261826,-153.0,0.00024247,2]
[362931217,1748524261836,-944.53964678,0.00024383,11]
[362931218,1748524261846,-496.47,0.00024383,2]
[362931219,1748524261855,-627.85,0.00024383,2]
[362931220,1748524261867,-1287.03,0.00024383,2]
[362931221,1748524261877,-155.77,0.00024383,2]
[362931222,1748524261890,-759.64,0.00024383,2]
[362931223,1748524261901,-430.0,0.00024383,2]
[362931224,1748524261912,-1086.35,0.00024383,2]
[362931225,1748524261923,-438.7,0.00024383,2]
[362931226,1748524261933,-430.0,0.00024383,2]
[362931227,1748524261943,-1431.32,0.00024383,2]
[362931228,1748524261953,-430.0,0.00024383,2]
[362931229,1748524261966,-430.0,0.00024383,2]
[362931230,1748524261976,-654.15,0.00024383,2]
[362931231,1748524261986,-2547.41,0.00024383,2]
[362931232,1748524261996,-17518.13,0.000244,2]
[362931233,1748524262006,-151.0,0.000244,7]
[362931234,1748524262017,-889.48012,0.00024456,15]
[362931235,1748524262028,-369.49807,0.000245,3]
[362931236,1748524262039,-944.53964678,0.00024555,11]
[362931237,1748524262049,-430.12270735,0.00024594,2]
[362931238,1748524262059,-496.47,0.00024657,2]
[362931239,1748524262069,-370.05,0.00024657,3]
[362931240,1748524262079,-627.85,0.00024657,2]
[362931241,1748524262090,-1287.03,0.00024657,2]
[362931242,1748524262100,-759.64,0.00024657,2]
[362931243,1748524262111,-384.76,0.00024657,2]
[362931244,1748524262123,-1086.35,0.00024657,2]
[362931245,1748524262133,-430.0,0.00024657,2]
[362931246,1748524262143,-1431.32,0.00024657,2]
[362931247,1748524262153,-553.07,0.00024657,2]
[362931248,1748524262163,-228.97,0.00024657,2]
[362931249,1748524262173,-654.15,0.00024657,2]
[362931250,1748524262184,-2547.41,0.00024657,2]
[362931251,1748524262195,-188.71461797,0.00024658,2]
[362931252,1748524262205,-736.54,0.000247,7]
[362931253,1748524262215,-23047.4,0.000247,7]
[362931254,1748524262225,-314.78059479,0.000247,7]
[362931255,1748524262235,-944.53964678,0.00024728,11]
[362931256,1748524262246,-711.44,0.0002489,10]
[362931257,1748524262256,-1228.17,0.0002489,10]
[362931258,1748524262266,-1023.47,0.0002489,10]
[362931259,1748524262275,-852.9,0.0002489,10]
[362931260,1748524262284,-393.06,0.000249,7]
[362931261,1748524262294,-2372.65,0.000249,2]
[362931262,1748524262303,-151.0,0.000249,7]
[362931263,1748524262313,-151.0,0.000249,7]
[362931264,1748524262321,-151.0,0.000249,7]
[362931265,1748524262329,-151.0,0.000249,7]
[362931266,1748524262338,-151.0,0.000249,7]
[362931267,1748524262347,-151.0,0.000249,7]
[362931268,1748524262356,-151.0,0.000249,7]
[362931269,1748524262364,-151.0,0.000249,7]
[362931270,1748524262373,-2396.641487,0.000249,2]
[362931271,1748524262381,-2396.641487,0.000249,2]
[362931272,1748524262390,-152.79,0.000249,31]
[362931273,1748524262397,-152.79,0.000249,31]
[362931274,1748524262406,-152.79,0.000249,31]
[362931275,1748524262416,-152.79,0.000249,31]
[362931276,1748524262426,-152.79,0.000249,31]
[362931277,1748524262435,-152.79,0.000249,31]
[362931278,1748524262445,-152.79,0.000249,31]
[362931279,1748524262455,-624.046023,0.000249,7]
[362931280,1748524262466,-624.046023,0.000249,7]
[362931281,1748524262475,-171.052836,0.000249,7]
[362931282,1748524262486,-171.052836,0.000249,7]
[362931283,1748524262496,-151.0,0.000249,7]
[362931284,1748524262507,-229.26895353,0.000249,3]
[362931285,1748524262517,-160.0,0.000249,3]
[362931286,1748524262527,-49169.9728244,0.000249,2]
[362931287,1748524262707,-968.28113904,0.000249,2]
[362931288,1748524262719,-1109.14178699,0.000249,2]
[362931289,1748524263723,-500.0,0.00019168,2]
[362931290,1748524263732,-228.64724973,0.00019168,2]
[362931291,1748524263743,-500.0,0.00019168,2]
[362931292,1748524263752,-500.0,0.00019168,2]
[362931293,1748524263762,-500.0,0.00019168,2]
[362931294,1748524263771,-500.0,0.00019168,2]
[362931295,1748524263781,-461.52087558,0.00019168,2]
[362931296,1748524263793,-38.47912442,0.00019168,2]
[362931297,1748524263802,-500.0,0.00019168,2]
[362931298,1748524263812,-467.48847649,0.00019168,2]
[362931299,1748524263821,-500.0,0.00019168,2]
[362931300,1748524263831,-500.0,0.00019168,2]
[362931301,1748524263840,-199.11201813,0.00019168,2]
[362931302,1748524263850,-500.0,0.00019168,2]
[362931303,1748524263860,-500.0,0.00019168,2]
[362931304,1748524263871,-450.65587661,0.00019168,2]
[362931305,1748524263881,-500.0,0.00019168,2]
[362931306,1748524263897,-500.0,0.00019168,2]
[362931307,1748524263906,-500.0,0.00019168,2]
[362931308,1748524263916,-500.0,0.00019168,2]
[362931309,1748524263926,-395.49744084,0.00019168,2]
[362931310,1748524263937,-500.0,0.00019168,2]
[362931311,1748524263947,-500.0,0.00019168,2]
[362931312,1748524263957,-500.0,0.00019168,2]
[362931313,1748524263967,-500.0,0.00019168,2]
[362931314,1748524263976,-500.0,0.00019168,2]
[362931315,1748524263986,-500.0,0.00019168,2]
[362931316,1748524263996,-500.0,0.00019168,2]
[362931317,1748524264005,-500.0,0.00019168,2]
[362931318,1748524264015,-500.0,0.00019168,2]
[362931319,1748524264025,-500.0,0.00019168,2]
[362931320,1748524264036,-500.0,0.00019168,2]
[362931321,1748524264045,-500.0,0.00019168,2]
[362931322,1748524264055,-500.0,0.00019168,2]
[362931323,1748524264064,-500.0,0.00019168,2]
[362931324,1748524264074,-500.0,0.00019168,2]
[362931325,1748524264083,-500.0,0.00019168,2]
[362931326,1748524264093,-500.0,0.00019168,2]
[362931327,1748524264103,-500.0,0.00019168,2]
[362931328,1748524264112,-500.0,0.00019168,2]
[362931329,1748524264122,-500.0,0.00019168,2]
[362931330,1748524264132,-500.0,0.00019168,2]
[362931331,1748524264141,-500.0,0.00019168,2]
[362931332,1748524264151,-584.39038902,0.00019168,2]
[362931333,1748524264161,-500.0,0.00019168,2]
[362931334,1748524264170,-500.0,0.00019168,2]
[362931335,1748524264180,-500.0,0.00019168,2]
[362931336,1748524264189,-500.0,0.00019168,2]
[362931337,1748524264198,-500.0,0.00019168,2]
[362931338,1748524264207,-500.0,0.00019168,2]
[362931339,1748524264216,-964.78702234,0.00019176,2]
[362931340,1748524264227,-500.0,0.00019176,2]
[362931341,1748524264236,-964.78702234,0.00019176,2]
[362931342,1748524264246,-964.78702234,0.00019176,2]
[362931343,1748524264256,-964.78702234,0.00019176,2]
[362931344,1748524264265,-964.78702234,0.00019176,2]
[362931345,1748524264274,-964.78702234,0.00019176,2]
[362931346,1748524264284,-964.78702234,0.00019176,2]
[362931347,1748524264293,-964.78702234,0.00019176,2]
[362931348,1748524264303,-964.78702234,0.00019176,2]
[362931349,1748524264313,-430.0,0.00019178,2]
[362931350,1748524264323,-500.0,0.00019451,2]
[362931351,1748524264332,-500.0,0.00019451,2]
[362931352,1748524264341,-430.0,0.00019452,2]
[362931353,1748524264352,-500.0,0.00019725,2]
[362931354,1748524264362,-500.0,0.00019725,2]
[362931355,1748524264374,-430.0,0.00019726,2]
[362931356,1748524264383,-500.0,0.00020272,2]
[362931357,1748524264393,-500.0,0.00020272,2]
[362931358,1748524264403,-500.0,0.00020272,2]
[362931359,1748524264413,-500.0,0.00020272,2]
[362931360,1748524264423,-230.43159853,0.00020272,2]
[362931361,1748524264433,-430.0,0.00021369,2]
[362931362,1748524264443,-430.0,0.00021643,2]
[362931363,1748524264453,-430.0,0.00021917,2]
[362931364,1748524264464,-500.0,0.00021918,2]
[362931365,1748524264474,-500.0,0.00021918,2]
[362931366,1748524264484,-500.0,0.00021918,2]
[362931367,1748524264494,-500.0,0.00021918,2]
[362931368,1748524264503,-500.0,0.00021918,2]
[362931369,1748524264513,-500.0,0.00021918,2]
[362931370,1748524264523,-500.0,0.00021918,2]
[362931371,1748524264532,-500.0,0.00021918,2]
[362931372,1748524264542,-500.0,0.00021918,2]
[362931373,1748524264552,-500.0,0.00021918,2]
[362931374,1748524264561,-500.0,0.00021918,2]
[362931375,1748524264571,-500.0,0.00021918,2]
[362931376,1748524264580,-500.0,0.00021918,2]
[362931377,1748524264590,-500.0,0.00021918,2]
[362931378,1748524264599,-500.0,0.00021918,2]
[362931379,1748524264609,-500.0,0.00021918,2]
[362931380,1748524264618,-500.0,0.00021918,2]
[362931381,1748524264627,-372.33748964,0.00021918,2]
[362931382,1748524264638,-500.0,0.00021918,2]
[362931383,1748524264648,-500.0,0.00021918,2]
[362931384,1748524264743,-500.0,0.00021918,2]
[362931385,1748524264757,-500.0,0.00021918,2]
[362931386,1748524264768,-500.0,0.00021918,2]
[362931387,1748524264778,-500.0,0.00021918,2]
[362931388,1748524264788,-500.0,0.00021918,2]
[362931389,1748524264799,-500.0,0.00021918,2]
[362931390,1748524264810,-500.0,0.00021918,2]
[362931391,1748524264821,-500.0,0.00021918,2]
[362931392,1748524264831,-500.0,0.00021918,2]
[362931393,1748524264842,-500.0,0.00021918,2]
[362931394,1748524264852,-500.0,0.00021918,2]
[362931395,1748524264862,-430.0,0.00022191,2]
[362931396,1748524264872,-430.0,0.00022465,2]
[362931397,1748524264882,-430.0,0.00022739,2]
[362931398,1748524264895,-430.0,0.00023013,2]
[362931399,1748524264905,-430.0,0.00023287,2]
[362931400,1748524264915,-430.0,0.00023561,2]
[362931401,1748524264926,-430.0,0.00023835,2]
[362931402,1748524264936,-430.0,0.00024109,2]
[362931403,1748524264947,-376745.32429657,0.000249,2]
[362931404,1748524264956,-423.167242,0.000249,7]
[362931405,1748524264967,-423.167242,0.000249,7]
[362931406,1748524264976,-423.167242,0.000249,7]
[362931407,1748524264986,-423.167242,0.000249,7]
[362931408,1748524264995,-944.53964678,0.000249,12]
[362931409,1748524265006,-206.261309,0.000249,7]
[362931410,1748524265016,-206.261309,0.000249,7]
[362931411,1748524265025,-151.0,0.000249,7]
[362931412,1748524265034,-151.0,0.000249,7]
[362931413,1748524265043,-151.0,0.000249,7]
[362931414,1748524265055,-151.0,0.000249,7]
[362931415,1748524265065,-151.0,0.000249,7]
[362931416,1748524265075,-496.47,0.00024931,2]
[362931417,1748524265085,-627.85,0.00024931,2]
[362931418,1748524265095,-1287.03,0.00024931,2]
[362931419,1748524265104,-759.64,0.00024931,2]
[362931420,1748524265116,-1086.35,0.00024931,2]
[362931421,1748524265125,-430.0,0.00024931,2]
[362931422,1748524265135,-1431.32,0.00024931,2]
[362931423,1748524265146,-654.15,0.00024931,2]
[362931424,1748524265156,-1854.8275366,0.00024931,2]
[362931425,1748524265169,-692.5824634,0.00024931,2]
[362931426,1748524265179,-869.77412244,0.00025,3]
[362931427,1748524265894,-58.85461555,0.00019178,2]
[362931428,1748524265906,-371.14538445,0.00019178,2]
[362931429,1748524265916,-430.0,0.00019178,2]
[362931430,1748524265928,-676.51069159,0.00019533,2]
[362931431,1748524265939,-430.0,0.0002,2]
[362931432,1748524265949,-114.03802012,0.00025,3]
[362931433,1748524265967,-1061.77170473,0.00025,3]
[362931434,1748524266102,-184.85115825,0.00019078,2]
[362931435,1748524266112,-92.53259175,0.00019168,2]
[362931436,1748524266126,-407.46740825,0.00019168,2]
[362931437,1748524266137,-500.0,0.00019168,2]
[362931438,1748524266147,-430.0,0.00019178,2]
[362931439,1748524266157,-363.80904658,0.00019178,2]
[362931440,1748524627193,-191.71790609,0.00014656,2]
[362931441,1748524630129,-198.58919477,0.00014656,2]
[362931442,1748524633091,-152.0,0.00014656,2]
[362931443,1748524636401,-201.70297699,0.00014656,2]
[362931444,1748524638433,-162.22030046,0.00014656,2]
[362931445,1748524639886,-151.22020053,0.00014656,2]
[362931446,1748524641505,-249.52869692,0.00014656,2]
[362931447,1748524643484,-154.60661659,0.00014656,2]
[362931448,1748524645825,-524.0,0.00014656,2]
[362931449,1748524650263,-173.52088538,0.00014656,2]
[362931451,1748524651334,171.597535,0.00013699,2]
[362931452,1748524652281,-153.10776738,0.00014656,2]
[362931453,1748524655386,-172.89261289,0.00014656,2]
[362931454,1748524656825,-161.78481334,0.00014656,2]
[362931455,1748524658263,-224.536575,0.00014656,2]
[362931456,1748524659864,-207.45369936,0.00014656,2]
[362931457,1748524662803,-304.45126426,0.00014656,2]
[362931458,1748524664695,-218.10873574,0.00014656,2]
[362931459,1748524666618,-152.0,0.00014656,2]
[362931460,1748524668044,-212.0045471,0.00014656,2]
[362931461,1748524669482,-152.0,0.00014656,2]
[362931462,1748524671607,-154.39425402,0.00014656,2]
[362931463,1748524673645,-192.74847749,0.00014656,2]
[362931464,1748524675111,-154.07436628,0.00014656,2]
[362931465,1748524678521,-233.52,0.00014656,2]
[362931466,1748524681237,-147.81610941,0.00014656,2]
[362931467,1748524681261,-154.53,0.00014804,2]
[362931468,1748524877888,-158.12415215,0.00014751,2]
[362931469,1748524879354,-212.51539187,0.00014751,2]
[362931470,1748524882334,-152.69,0.00014751,2]
[362931471,1748524884891,-285.15117557,0.00014751,2]
[362931472,1748524886332,-3734.0,0.00014751,2]